{"text_format":"1","workbook":"xlsx","n_sheets":2,"sheets":["Form","Tabs"],"not_rendered":{"charts":0,"images":1,"macros":1,"external_links":0,"defined_names":1,"comments":0,"pivot_tables":0},"unopened":[],"bounds":{"document_bytes":16777216,"sheet_cells":100000,"rows_first":2000,"rows_last":500,"rows_between":2000,"halvings":0,"cell_chars":16384,"cell_head_chars":4096},"cells_cut":0,"cells_raw":0,"read":"whole","date_system":"1900"}

{"sheet":"Form","index":0,"n_rows":76,"n_cols":16,"rows_kept":76,"cut":false,"hidden":false,"merged":[[10,10,10,13],[0,6,2,13],[4,3,4,6],[4,10,4,13],[6,3,6,6],[4,8,4,9],[6,8,6,9],[75,9,75,10],[71,0,72,10],[18,6,18,11],[23,6,23,11],[28,6,28,11],[33,6,33,11],[38,6,38,11],[43,6,43,11],[69,3,69,6],[69,9,69,10],[73,3,73,6],[75,3,75,6],[54,1,56,13],[59,1,61,13],[64,1,66,13],[24,1,26,13],[53,6,53,11],[58,6,58,11],[63,6,63,11],[6,10,6,13],[73,9,73,10],[29,1,31,13],[34,1,36,13],[39,1,41,13],[44,1,46,13],[49,1,51,13],[48,6,48,11],[12,0,13,13],[15,0,15,13],[19,1,21,13],[8,3,8,6],[10,3,10,6]]}
[null,null,null,null,null,null,"Skilled Crafts & Service Maintenance Performance Appraisal"]
[]
[]
[]
["Employee Name:",null,null,null,null,null,null,null,"MSU ID:"]
[]
["Job Title:",null,null,null,null,null,null,null,"Appraisal Date:"]
[]
["Department:",null,null,null,null,null,null,null,"Appraisal Period:",null,"From:",null,"To:"]
[]
["Division:",null,null,"Campus Services",null,null,null,null,"Appraisal Type:",null,"Please Select"]
[]
["The performance appraisal provides the opportunity for supervisors and staff to discuss the employee's performance and jointly develop a plan for continued improvement in a supportive and constructive manner."]
[]
[]
["Ratings 1, 2, & 5 require justification comments"]
[]
[]
["1.","Attendance",null,null,null,null,"Please Select Rating",null,null,null,null,null,null,{"$f":"IF(ISNA(INDEX(Tabs!$A$10:$A$15,MATCH(Form!$G$19,Tabs!$B$10:$B$15,0))),\"\",INDEX(Tabs!$A$10:$A$15,MATCH(Form!$G$19,Tabs!$B$10:$B$15,0)))","v":0},null,{"$f":"N19","v":0}]
[]
[]
[]
[]
["2.","Occupational Knowledge",null,null,null,null,"Please Select Rating",null,null,null,null,null,null,{"$f":"IF(ISNA(INDEX(Tabs!$A$10:$A$15,MATCH(Form!$G$24,Tabs!$B$10:$B$15,0))),\"\",INDEX(Tabs!$A$10:$A$15,MATCH(Form!$G$24,Tabs!$B$10:$B$15,0)))","v":0},null,{"$f":"N24","v":0}]
[]
[]
[]
[]
["3.","Quality of Work",null,null,null,null,"Please Select Rating",null,null,null,null,null,null,{"$f":"IF(ISNA(INDEX(Tabs!$A$10:$A$15,MATCH(Form!$G$29,Tabs!$B$10:$B$15,0))),\"\",INDEX(Tabs!$A$10:$A$15,MATCH(Form!$G$29,Tabs!$B$10:$B$15,0)))","v":0},null,{"$f":"N29","v":0}]
[]
[]
[]
[]
["4.","Quantity of Work",null,null,null,null,"Please Select Rating",null,null,null,null,null,null,{"$f":"IF(ISNA(INDEX(Tabs!$A$10:$A$15,MATCH(Form!$G$34,Tabs!$B$10:$B$15,0))),\"\",INDEX(Tabs!$A$10:$A$15,MATCH(Form!$G$34,Tabs!$B$10:$B$15,0)))","v":0},null,{"$f":"N34","v":0}]
[]
[]
[]
[]
["5.","Safety",null,null,null,null,"Please Select Rating",null,null,null,null,null,null,{"$f":"IF(ISNA(INDEX(Tabs!$A$10:$A$15,MATCH(Form!$G$39,Tabs!$B$10:$B$15,0))),\"\",INDEX(Tabs!$A$10:$A$15,MATCH(Form!$G$39,Tabs!$B$10:$B$15,0)))","v":0},null,{"$f":"N39","v":0}]
[]
[]
[]
[]
["6.","Teamwork",null,null,null,null,"Please Select Rating",null,null,null,null,null,null,{"$f":"IF(ISNA(INDEX(Tabs!$A$10:$A$15,MATCH(Form!$G$44,Tabs!$B$10:$B$15,0))),\"\",INDEX(Tabs!$A$10:$A$15,MATCH(Form!$G$44,Tabs!$B$10:$B$15,0)))","v":0},null,{"$f":"N44","v":0}]
[]
[]
[]
[]
["7.","Initiative",null,null,null,null,"Please Select Rating",null,null,null,null,null,null,{"$f":"IF(ISNA(INDEX(Tabs!$A$10:$A$15,MATCH(Form!$G$49,Tabs!$B$10:$B$15,0))),\"\",INDEX(Tabs!$A$10:$A$15,MATCH(Form!$G$49,Tabs!$B$10:$B$15,0)))","v":0},null,{"$f":"N49","v":0}]
[]
[]
[]
[]
["8.","Adaptability/Ability to Learn",null,null,null,null,"Please Select Rating",null,null,null,null,null,null,{"$f":"IF(ISNA(INDEX(Tabs!$A$10:$A$15,MATCH(Form!$G$54,Tabs!$B$10:$B$15,0))),\"\",INDEX(Tabs!$A$10:$A$15,MATCH(Form!$G$54,Tabs!$B$10:$B$15,0)))","v":0},null,{"$f":"N54","v":0}]
[]
[]
[]
[]
["9.","Problem Assessment/Continuous Improvement",null,null,null,null,"Please Select Rating",null,null,null,null,null,null,{"$f":"IF(ISNA(INDEX(Tabs!$A$10:$A$15,MATCH(Form!$G$59,Tabs!$B$10:$B$15,0))),\"\",INDEX(Tabs!$A$10:$A$15,MATCH(Form!$G$59,Tabs!$B$10:$B$15,0)))","v":0},null,{"$f":"N59","v":0}]
[]
[]
[]
[]
["10.","Customer Focus",null,null,null,null,"Please Select Rating",null,null,null,null,null,null,{"$f":"IF(ISNA(INDEX(Tabs!$A$10:$A$15,MATCH(Form!$G$64,Tabs!$B$10:$B$15,0))),\"\",INDEX(Tabs!$A$10:$A$15,MATCH(Form!$G$64,Tabs!$B$10:$B$15,0)))","v":0},null,{"$f":"N64","v":0}]
[]
[]
[]
[]
[null,null,null,null,null,null,null,null,null,null,null,"Average Points:",null,{"$f":"IFERROR(AVERAGEIF(P19:P64,\">0\"),\"0\")","v":"0"}]
["Employee:",null,null,null,null,null,null,null,"Date:"]
[]
["Employee signature does not indicate agreement with the appraisal.  It only acknowledges that the employee was given the opportunity to discuss the appraisal with the supervisor."]
[]
["Supervisor:",null,null,null,null,null,null,null,"Date:"]
[]
["Unit/Dept Head:",null,null,null,null,null,null,null,"Date:"]

{"sheet":"Tabs","index":1,"n_rows":15,"n_cols":2,"rows_kept":15,"cut":false,"hidden":true,"merged":[]}
["Appraisal Type"]
[]
["Please Select"]
["Annual Appraisal"]
["Promotion Appraisal"]
["Termination Appraisal"]
[]
["Rating Scale"]
[]
[0,"Please Select Rating"]
[1,"1.  Unacceptable"]
[2,"2.  Needs Improvement"]
[3,"3.  Meets & Exceeds Some Expectations"]
[4,"4.  Exceeds Most Expectations"]
[5,"5.  Outstanding"]